bitfinex-derivatives/quotes_ETHF0:USTF0_20250905
["timestamp","ask_amount","ask_price","bid_price","bid_amount"]
[1757055354138,0.7185,4329.4,4329.3,0.4458]
[1757055354339,0.7185,4329.4,4329.3,0.659]
[1757055354539,0.7185,4329.4,4329.3,0.9577]
[1757055357243,0.2979,4329.8,4329.3,0.659]
[1757055357546,0.5092,4329.8,4329.7,0.7217]
[1757055357937,0.7185,4329.8,4329.7,0.7217]
[1757055358540,0.94948999,4329.8,4329.7,0.7217]
[1757055359140,0.2979,4329.7,4329.3,0.2987]
[1757055359336,0.23098999,4329.5,4329.4,0.659]
[1757055359542,0.7185,4329.5,4329.4,0.9577]
[1757055359937,1.06898999,4329.5,4329.4,0.5085]
[1757055360142,1.06898999,4329.5,4329.4,0.4458]
[1757055360547,1.06898999,4329.5,4329.4,0.7445]
[1757055361252,1.06898999,4329.5,4329.4,0.9577]
[1757055362046,1.06898999,4329.5,4329.4,0.4458]
[1757055362247,1.06898999,4329.5,4329.4,0.236]
[1757055362851,1.06898999,4329.5,4329.4,0.9577]
[1757055363242,0.94948999,4329.5,4329.4,0.9577]
[1757055366457,0.23098999,4329.5,4329.4,0.9577]
[1757055366652,3.5057,4329.9,4329.5,0.4232]
[1757055366850,0.23098999,4329.8,4329.7,0.7217]
[1757055367259,3.2078,4329.9,4329.8,0.2987]
[1757055367557,0.5092,4329.9,4329.8,0.7217]
[1757055370653,0.95275832,4330.4,4329.9,0.2987]
[1757055370956,0.7185,4330.0,4329.9,0.7217]
[1757055371160,0.7185,4330.0,4329.9,0.9577]
[1757055371355,0.94948999,4330.0,4329.9,0.9577]
[1757055376053,0.44228999,4330.0,4329.9,0.9577]
[1757055376261,0.23098999,4330.0,4329.9,0.9577]
[1757055377850,0.2979,4330.3,4330.2,0.7348]
[1757055378058,3.5249,4330.5,4330.3,0.3118]
[1757055378260,3.7327,4330.5,4330.4,0.7163]
[1757055378461,0.5249,4330.5,4330.4,0.7163]
[1757055378959,0.95598999,4330.5,4330.4,0.7163]
[1757055379156,1.07718999,4330.5,4330.4,0.7163]
[1757055379757,1.07718999,4330.5,4330.4,0.2003]
[1757055380460,1.07718999,4330.5,4330.4,0.7163]
[1757055380653,0.95598999,4330.5,4330.4,0.7163]
[1757055382660,0.725,4330.5,4330.4,0.7163]
[1757055383059,0.95598999,4330.5,4330.4,0.7163]
[1757055383359,1.07718999,4330.5,4330.4,0.7163]
[1757055383562,0.95598999,4330.5,4330.4,0.7163]
[1757055385054,0.43878999,4330.5,4330.4,0.7163]
[1757055385762,0.75588999,4330.5,4330.4,0.7163]
[1757055386162,0.43878999,4330.5,4330.4,0.7163]
[1757055386455,0.2078,4330.5,4330.4,0.7163]
[1757055386666,0.3171,4330.7,4330.4,0.7163]
[1757055386861,0.23098999,4330.6,4330.5,0.7677]
[1757055387155,0.3171,4330.7,4330.5,1.0795]
[1757055387361,3.3288,4331.0,4330.6,0.7163]
[1757055387559,0.5249,4330.8,4330.7,0.7163]
[1757055387751,3.5249,4331.0,4330.8,0.3118]
[1757055387951,3.75588999,4331.0,4330.9,0.7163]
[1757055388153,3.7327,4331.0,4330.9,0.7163]
[1757055390865,3.9328,4331.0,4330.9,0.7163]
[1757055391259,4.054,4331.0,4330.9,0.7163]
[1757055395268,3.9328,4331.0,4330.9,0.7163]
[1757055395460,0.2078,4331.0,4330.9,1.13184]
[1757055397161,0.3171,4331.2,4330.9,0.82004]
[1757055397364,3.2078,4331.5,4331.1,1.05935832]
[1757055397569,0.725,4331.2,4331.1,0.85515832]
[1757055398271,0.725,4331.2,4331.1,0.2003]
[1757055398758,0.725,4331.2,4331.1,0.5121]
[1757055399570,0.725,4331.2,4331.1,1.16695832]
[1757055399963,0.725,4331.2,4331.1,1.37115832]
[1757055400160,0.725,4331.2,4331.1,0.87115832]
[1757055400365,0.725,4331.2,4331.1,1.05935832]
[1757055402573,0.725,4331.2,4331.1,1.20325832]
[1757055403573,0.725,4331.2,4331.1,1.05935832]
[1757055403774,0.5249,4331.2,4331.1,1.20325832]
[1757055404673,0.5249,4331.2,4331.1,1.05935832]
[1757055406376,0.5249,4331.2,4331.1,1.20325832]
[1757055407377,0.5249,4331.2,4331.1,1.05935832]
[1757055408275,0.5249,4331.2,4331.1,1.20275832]
[1757055408873,0.5249,4331.2,4331.1,1.05935832]
[1757055410282,0.7342,4331.2,4331.1,1.05935832]
[1757055411082,0.7342,4331.2,4331.1,0.85515832]
[1757055412683,0.7342,4331.2,4331.1,1.05375832]
[1757055419693,0.3189,4331.4,4331.1,0.86455832]
[1757055419894,0.96408999,4331.2,4331.1,0.86455832]
[1757055420393,0.7331,4331.2,4331.1,0.86455832]
[1757055421699,0.7331,4331.2,4331.1,1.06315832]
[1757055422197,0.7331,4331.2,4331.1,0.2097]
[1757055422501,0.7331,4331.2,4331.0,0.236]
[1757055422706,0.64518999,4331.1,4331.0,0.4457]
[1757055422993,0.96408999,4331.1,4331.0,0.4457]
[1757055425599,0.96408999,4331.1,4331.0,0.6443]
[1757055427195,0.96408999,4331.1,4331.0,0.4457]
[1757055428302,0.96408999,4331.1,4331.0,0.236]
[1757055428500,0.7331,4330.8,4330.7,3.2078]
[1757055428699,0.96408999,4330.8,4330.7,0.236]
[1757055432405,0.96408999,4330.8,4330.7,0.4457]
[1757055434906,0.96408999,4330.8,4330.7,0.6443]
[1757055442209,0.75478999,4330.8,4330.7,0.7883]
[1757055442413,0.3189,4330.8,4330.7,1.20386]
[1757055442715,0.3189,4330.8,4330.7,2.10286]
[1757055443813,0.5284,4330.8,4330.7,2.10286]
[1757055444816,0.5284,4330.8,4330.7,1.95886]
[1757055445712,0.5284,4330.8,4330.7,2.10286]
[1757055447015,0.5284,4330.8,4330.7,1.95886]
[1757055449015,0.5284,4330.8,4330.7,1.5433]
[1757055449316,0.7386,4330.8,4330.7,1.5433]
[1757055449817,0.7386,4330.8,4330.7,1.1087]
[1757055450015,0.7386,4330.8,4330.7,1.134]
[1757055452419,0.7386,4330.8,4330.7,1.3279]
[1757055453421,0.96958999,4330.8,4330.7,1.134]
[1757055453921,4.96958999,4330.8,4330.7,0.899]
[1757055454225,4.96958999,4330.8,4330.7,1.134]
[1757055454519,4.96958999,4330.8,4330.7,0.899]
[1757055454721,4.96958999,4330.8,4330.7,0.811]
[1757055455021,0.1286,4330.5,4330.4,31.861]
[1757055455215,0.67698999,4330.5,4330.4,32.096]
[1757055455618,5.09668999,4330.5,4330.4,0.558]
[1757055455818,8.30448999,4330.5,4330.4,0.558]
[1757055456420,4.30448999,4330.5,4330.4,0.558]
[1757055458719,4.30448999,4330.5,4330.4,0.323]
[1757055458916,4.30448999,4330.5,4330.4,0.558]
[1757055462720,4.30448999,4330.5,4330.4,0.323]
[1757055463023,1.09668999,4330.5,4330.4,0.323]
[1757055472026,0.4202,4329.3,4329.2,0.2978]
[1757055472220,0.90038999,4329.3,4329.2,0.2978]
[1757055472727,0.6694,4329.3,4329.2,0.5064]
[1757055472936,0.90038999,4329.3,4329.2,0.5064]
[1757055475338,0.90038999,4329.3,4329.1,32.102]
[1757055475339,0.6694,4329.2,4329.1,0.2978]
[1757055475640,0.90038999,4329.2,4329.1,0.5064]
[1757055475838,0.6694,4329.2,4329.1,0.5064]
[1757055479546,0.2058,4329.2,4329.1,0.7164]
[1757055479747,3.2078,4329.5,4329.2,0.2978]
[1757055479950,3.2078,4329.5,4329.3,0.7164]
[1757055479951,0.23098999,4329.4,4329.3,0.7164]
[1757055480349,0.2058,4329.4,4329.3,0.4186]
[1757055480852,0.2058,4329.4,4329.3,0.7164]
[1757055481339,3.2078,4329.5,4329.3,0.4186]
[1757055481543,0.23098999,4329.4,4329.3,0.7164]
[1757055481952,0.43678999,4329.4,4329.3,0.7164]
[1757055482250,0.2058,4329.4,4329.3,0.7164]
[1757055483355,0.6694,4329.4,4329.3,0.7164]
[1757055485353,0.4202,4329.4,4329.3,0.7164]
[1757055486450,0.2058,4329.4,4329.3,0.7164]
[1757055486654,3.2078,4330.1,4330.0,0.8448]
[1757055487057,0.2492,4331.3,4330.5,0.547]
[1757055487253,0.23098999,4330.6,4330.5,4.84930926]
[1757055487458,0.23098999,4330.6,4330.5,4.94207112]
[1757055487649,0.2058,4330.7,4330.6,0.2978]
[1757055487956,0.2058,4330.7,4330.6,0.7164]
[1757055488352,0.2058,4330.8,4330.7,0.7164]
[1757055489053,0.43678999,4330.8,4330.7,0.7164]
[1757055497371,0.23098999,4330.8,4330.7,0.7164]
[1757055499464,0.4502,4331.4,4331.3,0.2021]
[1757055499667,0.654,4331.4,4331.3,0.5164]
[1757055500165,0.4048,4331.4,4331.3,0.7292]
[1757055500966,0.6537,4331.4,4331.3,0.7292]
[1757055503471,0.4048,4331.4,4331.3,0.7292]
[1757055504062,0.201,4331.4,4331.3,0.7292]
[1757055504464,3.2078,4331.5,4331.4,0.3143]
[1757055504662,3.2078,4331.5,4331.4,0.7292]
[1757055504868,3.63978999,4331.5,4331.4,0.7292]
[1757055505069,3.84358999,4331.5,4331.4,0.7292]
[1757055506264,0.63578999,4331.5,4331.4,0.7292]
[1757055509570,0.88468999,4331.5,4331.4,0.7292]
[1757055512770,0.63578999,4331.5,4331.4,0.7292]
[1757055518274,0.23098999,4331.5,4331.4,0.7292]
[1757055519367,1.22593,4331.9,4331.8,0.4149]
[1757055519565,1.92318981,4331.9,4331.8,0.7292]
[1757055519777,1.02493,4331.9,4331.8,0.7292]
[1757055519977,1.22593,4331.9,4331.8,0.7292]
[1757055520974,1.02493,4331.9,4331.8,0.7292]
[1757055521879,1.22593,4331.9,4331.8,0.7292]
[1757055527282,1.42973,4331.9,4331.8,0.9642]
[1757055528684,1.67853,4331.9,4331.8,0.9642]
[1757055529681,1.67853,4331.9,4331.8,0.7514]
[1757055529984,1.67853,4331.9,4331.8,0.5493]
[1757055530187,1.42973,4331.9,4331.0,3.3269]
[1757055530483,0.3994,4331.2,4331.1,0.9492]
[1757055531580,0.1938,4331.2,4331.1,0.9492]
[1757055531779,0.1938,4331.2,4331.1,1.60367112]
[1757055532386,1.02493,4331.9,4331.1,1.60367112]
[1757055532581,0.23098999,4331.4,4331.2,0.3021]
[1757055532892,0.42478999,4331.4,4331.3,0.4121]
[1757055533082,0.1938,4331.4,4331.3,0.7142]
[1757055537786,0.3994,4331.4,4331.3,0.7142]
[1757055537984,0.6482,4331.4,4331.3,0.9492]
[1757055538389,0.6482,4331.4,4331.3,0.7142]
[1757055538587,0.6482,4331.4,4331.3,0.9492]
[1757055538890,0.3994,4331.4,4331.3,0.9492]
[1757055539988,0.1938,4331.4,4331.3,0.9492]
[1757055542786,0.2488,4331.8,4331.5,0.1242]
[1757055542787,0.1938,4331.6,4331.5,0.1242]
[1757055542997,0.1938,4331.6,4331.5,0.8384]
[1757055543188,0.42478999,4331.6,4331.5,0.8384]
[1757055548997,0.23098999,4331.6,4331.5,0.8384]
[1757055559717,1.02493,4331.9,4331.5,0.8384]
[1757055560023,0.1283,4334.0,4332.5,0.1199]
[1757055560024,0.2084,4332.6,4332.5,0.1199]
[1757055560217,0.7152,4332.6,4332.5,0.5377]
[1757055560622,0.7152,4332.6,4332.5,0.8504]
[1757055563026,3.2078,4333.1,4332.5,0.8504]
[1757055563230,0.7152,4332.7,4332.6,0.5185]
[1757055564728,0.7152,4332.7,4332.6,0.7305]
[1757055567224,0.7152,4332.7,4332.6,0.5185]
[1757055568132,0.7152,4332.7,4332.3,0.235]
[1757055568434,0.7152,4332.7,4332.6,0.5185]
[1757055572133,0.7152,4332.7,4332.4,0.3127]
[1757055572334,0.7152,4332.7,4332.3,0.235]
[1757055572731,0.7152,4332.7,4332.4,0.3127]
[1757055572934,0.7152,4332.7,4332.1,0.3127]
[1757055576230,0.7152,4332.7,4332.6,0.2058]
[1757055576431,0.7152,4332.7,4332.6,0.5185]
[1757055576743,0.7152,4332.7,4332.6,0.7305]
[1757055577633,3.2078,4333.1,4332.6,0.7305]
[1757055577842,0.5157,4333.0,4332.9,0.4178]
[1757055578032,0.5157,4333.0,4332.9,0.7305]
[1757055578341,0.7152,4333.0,4332.9,0.7305]
[1757055578534,3.7235,4333.1,4333.0,0.8504]
[1757055578836,3.923,4333.1,4333.0,0.8504]
[1757055579037,3.923,4333.1,4333.0,0.7305]
[1757055581238,3.6157,4333.1,4333.0,0.8504]
[1757055581540,3.923,4333.1,4333.0,0.8504]
[1757055581737,3.923,4333.1,4333.0,0.7305]
[1757055583243,3.6157,4333.1,4333.0,0.8504]
[1757055583442,3.4162,4333.1,4333.0,0.8504]
[1757055583641,3.2078,4333.1,4333.0,0.8504]
[1757055583839,0.2084,4333.6,4333.5,0.8504]
[1757055584143,3.2078,4333.7,4333.6,0.3127]
[1757055584345,3.2078,4333.7,4333.6,0.7305]
[1757055585040,3.4162,4333.7,4333.6,0.7305]
[1757055585943,3.923,4333.7,4333.6,0.7305]
[1757055586244,3.923,4333.7,4333.6,0.3127]
[1757055586844,3.923,4333.7,4333.1,0.3127]
[1757055589546,3.6157,4333.7,4333.1,0.235]
[1757055589847,0.734,4333.6,4333.5,0.5079]
[1757055595252,0.734,4333.6,4333.5,0.7032]
[1757055595453,0.734,4333.6,4333.5,0.829]
[1757055596648,3.7304,4333.7,4333.6,0.3072]
[1757055596855,3.9418,4333.7,4333.6,0.7032]
[1757055597745,3.6234,4333.7,4333.6,0.7032]
[1757055597946,3.4192,4333.7,4333.6,0.7032]
[1757055598555,3.2078,4333.7,4333.6,0.7032]
[1757055598751,0.2114,4333.7,4333.6,0.7032]
[1757055599053,0.5298,4333.7,4333.6,0.7032]
[1757055599258,0.734,4333.6,4333.5,0.4347]
[1757055599455,0.734,4333.6,4333.5,1.063]
[1757055600545,0.734,4333.6,4333.5,0.9372]
[1757055600954,0.734,4333.6,4333.5,0.7032]
[1757055601153,3.2078,4334.2,4333.5,0.5218]
[1757055601456,3.9418,4334.2,4334.1,0.7032]
[1757055601658,3.9418,4334.2,4334.1,0.5079]
[1757055601949,3.9418,4334.2,4334.1,0.7032]
[1757055602455,3.4192,4334.2,4334.1,0.7032]
[1757055602748,3.9418,4334.2,4334.1,0.7032]
[1757055604552,3.6234,4334.2,4334.1,0.7032]
[1757055604753,3.9418,4334.2,4334.1,0.7032]
[1757055606259,0.2114,4334.2,4334.1,0.7032]
[1757055606658,0.3184,4334.5,4334.2,0.3072]
[1757055606853,0.734,4334.5,4334.4,0.396]
[1757055607055,0.2114,4334.5,4334.4,0.7032]
[1757055607257,3.2078,4334.7,4334.5,0.3072]
[1757055607258,0.5226,4334.6,4334.5,0.3072]
[1757055607555,0.734,4334.6,4334.5,0.3072]
[1757055608454,0.734,4334.6,4334.5,0.5079]
[1757055612266,0.1164,4334.5,4334.1,0.3072]
[1757055612565,0.734,4334.2,4334.1,0.7419]
[1757055612954,0.734,4334.2,4334.1,0.5079]
[1757055613161,0.5329,4333.5,4332.7,3.2078]
[1757055613362,0.5226,4333.4,4333.3,0.7032]
[1757055613562,0.734,4333.4,4333.3,0.7032]
[1757055614966,0.4156,4333.4,4333.3,0.7032]
[1757055615863,0.2114,4333.4,4333.3,0.7032]
[1757055616064,0.5298,4333.9,4333.8,0.7032]
[1757055616370,0.734,4333.9,4333.8,0.7032]
[1757055620370,0.4156,4333.9,4333.8,0.7032]
[1757055620664,3.7161,4334.2,4334.1,0.7261]
[1757055620864,3.4045,4334.2,4334.1,1.37949029]
[1757055621069,3.2078,4334.2,4334.1,1.37949029]
[1757055622374,3.2078,4334.2,4334.1,1.61349029]
[1757055622576,3.4045,4334.2,4334.1,1.61349029]
[1757055622872,3.4045,4334.2,4334.1,0.9601]
[1757055624372,3.93,4334.2,4334.1,0.9601]
[1757055625873,3.93,4334.2,4334.1,1.61349029]
[1757055627075,3.93,4334.2,4334.1,0.9601]
[1757055630478,3.93,4334.2,4334.1,0.234]
[1757055630679,3.93,4334.2,4334.1,0.551]
[1757055631479,3.93,4334.2,4334.1,0.7644]
[1757055631679,3.93,4334.2,4334.1,0.9601]
[1757055634278,3.93,4334.2,4334.1,0.7644]
[1757055634477,3.93,4334.2,4334.1,0.9601]
[1757055635175,3.4045,4334.2,4334.1,0.9601]
[1757055635381,3.2078,4334.2,4334.1,0.9601]
[1757055635982,3.4045,4334.2,4334.1,0.9601]
[1757055636376,3.2078,4334.2,4334.1,0.9601]
[1757055636570,3.2078,4334.2,4334.1,1.37533]
[1757055636780,3.4045,4334.2,4334.1,1.37533]
[1757055637585,3.4045,4334.2,4334.1,0.9601]
[1757055637786,3.7161,4334.2,4334.1,0.9601]
[1757055638088,3.93,4334.2,4334.1,0.9601]
[1757055638279,3.93,4334.2,4334.1,0.7261]
[1757055638479,0.3116,4334.1,4333.6,0.317]
[1757055638675,0.4106,4333.8,4333.7,0.86267]
[1757055638880,0.3116,4333.2,4332.9,31.847]
[1757055639084,0.7222,4333.0,4332.9,32.49634]
[1757055639681,0.7222,4333.0,4332.9,32.398]
[1757055639877,0.8386,4333.0,4332.9,31.847]
[1757055640189,0.7222,4332.9,4332.8,0.234]
[1757055641883,0.7222,4332.9,4332.8,0.551]
[1757055642387,0.7222,4332.9,4332.8,0.7644]
[1757055643290,0.7222,4332.9,4332.8,0.234]
[1757055643784,0.7222,4332.9,4332.8,0.7644]
[1757055643989,0.7222,4332.9,4332.8,0.9601]
[1757055644189,3.2078,4333.1,4333.0,0.1164]
[1757055644396,3.7161,4333.1,4333.0,1.49589029]
[1757055645190,0.3116,4333.0,4332.7,0.97039029]
[1757055645383,0.1967,4332.1,4332.0,4.46573]
[1757055645589,0.1967,4332.3,4332.2,0.82451]
[1757055645891,0.7222,4332.9,4332.8,0.2134]
[1757055646090,0.7222,4332.9,4332.8,0.5304]
[1757055648884,0.7222,4332.9,4332.5,0.3504]
[1757055649099,0.7222,4332.9,4332.6,0.2917]
[1757055649591,0.3191,4332.8,4332.6,0.2917]
[1757055649785,0.4064,4332.8,4332.7,1.35249029]
[1757055650299,3.7215,4333.1,4333.0,0.8169]
[1757055650592,3.9333,4333.1,4333.0,0.8169]
[1757055651398,3.9333,4333.1,4333.0,0.6991]
[1757055651993,3.6142,4333.1,4333.0,0.8169]
[1757055652604,3.6142,4333.1,4333.0,1.0509]
[1757055653198,3.2078,4333.1,4333.0,1.0509]
[1757055653404,0.1946,4333.7,4333.6,0.6991]
[1757055653596,0.7255,4334.1,4334.0,0.4074]
[1757055653797,0.7255,4334.1,4334.0,0.8169]
[1757055654003,0.4399,4334.0,4333.6,3.4418]
[1757055654197,0.3191,4333.6,4333.5,0.234]
[1757055654503,0.7255,4333.6,4333.5,0.738]
[1757055656302,0.7255,4333.6,4333.5,0.234]
[1757055657395,0.7255,4333.6,4333.5,0.5257]
[1757055657792,0.7255,4333.6,4333.5,0.234]
[1757055658201,0.7255,4333.6,4333.5,0.738]
[1757055659299,0.1208,4334.0,4333.5,0.58256]
[1757055659300,0.3191,4334.0,4333.5,0.58256]
[1757055659497,3.6142,4334.4,4334.0,0.2917]
[1757055659697,0.4064,4333.6,4333.5,0.8169]
[1757055659893,0.4064,4333.6,4333.5,1.0509]
[1757055660200,0.7255,4333.6,4333.5,0.8169]
[1757055660399,0.7255,4333.6,4333.5,1.0509]
[1757055660598,0.7255,4333.6,4333.5,0.234]
[1757055660902,0.4064,4333.4,4333.3,0.2917]
[1757055661108,0.7255,4333.4,4333.3,0.738]
[1757055661398,0.1946,4333.4,4333.3,1.58649029]
[1757055661602,0.1946,4333.8,4333.7,0.6991]
[1757055662104,0.234,4334.6,4333.7,0.6991]
[1757055662105,3.2078,4334.9,4334.3,0.4074]
[1757055662301,0.7255,4334.9,4334.8,1.35249029]
[1757055662601,0.1946,4334.9,4334.8,1.35249029]
[1757055666702,3.4024,4335.4,4335.3,0.4074]
[1757055666903,3.4024,4335.4,4335.3,0.6991]
[1757055667202,0.1946,4335.6,4335.5,0.5252]
[1757055667410,0.1946,4335.6,4335.5,1.0509]
[1757055667610,0.1946,4336.1,4336.0,0.53284]
[1757055667908,0.7255,4336.4,4336.3,0.4074]
[1757055668105,0.4064,4336.4,4336.3,0.4074]
[1757055668302,0.7255,4336.4,4336.3,0.6991]
[1757055669296,0.1946,4336.5,4336.4,0.2917]
[1757055669608,0.8419,4336.5,4336.4,0.234]
[1757055670911,0.7255,4336.5,4336.4,0.738]
[1757055671111,0.8419,4336.5,4336.4,0.234]
[1757055671405,0.8419,4336.5,4336.3,0.234]
[1757055672110,0.5228,4336.5,4336.3,0.5257]
[1757055672306,0.1946,4336.4,4336.3,0.9331]
[1757055672608,0.1946,4336.9,4336.8,0.6991]
[1757055672813,0.7255,4336.9,4336.8,0.9331]
[1757055673208,0.7255,4336.9,4336.1,0.2917]
[1757055673410,0.3191,4336.8,4336.3,0.2917]
[1757055673609,0.7255,4336.5,4336.4,0.738]
[1757055674004,0.7255,4336.5,4336.4,0.9331]
[1757055674205,0.4064,4336.5,4336.4,0.9331]
[1757055674402,0.7255,4336.5,4336.4,0.738]
[1757055675111,0.4064,4336.5,4336.4,0.9331]
[1757055675608,0.7255,4336.5,4336.4,0.9331]
[1757055676413,0.8425,4336.5,4336.4,0.234]
[1757055676807,0.8425,4336.5,4336.3,0.234]
[1757055677207,0.4064,4336.5,4336.4,0.2123]
[1757055677413,0.4064,4336.5,4336.4,0.504]
[1757055677613,0.5234,4336.5,4336.3,0.234]
[1757055677917,0.7255,4336.4,4336.1,0.2917]
[1757055678109,3.2078,4336.2,4335.9,0.408]
[1757055678315,0.7104,4336.8,4336.7,0.5079]
[1757055678515,0.7104,4336.8,4336.7,0.41498]
[1757055678709,0.4176,4336.4,4336.3,0.2105]
[1757055678911,0.4176,4336.4,4336.3,0.5079]
[1757055679209,3.2078,4336.9,4336.4,0.2974]
[1757055679410,3.9182,4337.4,4337.3,0.2105]
[1757055679615,3.9182,4337.4,4337.3,0.5079]
[1757055679913,3.9182,4337.4,4337.3,0.2105]
[1757055680115,3.6254,4337.4,4336.8,0.2974]
[1757055680311,0.7104,4336.9,4336.8,0.4475]
[1757055680505,3.2078,4337.4,4336.8,0.4475]
[1757055680506,3.5006,4337.4,4336.8,0.645]
[1757055680713,0.4982,4337.7,4337.6,0.7054]
[1757055680908,0.2054,4337.7,4337.6,0.7054]
[1757055681212,0.2928,4337.6,4337.1,0.2974]
[1757055681411,0.7104,4337.6,4337.5,0.7054]
[1757055682312,3.5006,4337.9,4337.5,0.8315]
[1757055682519,3.2078,4337.9,4337.8,0.7054]
[1757055682819,3.4132,4337.9,4337.8,0.7054]
[1757055683311,3.4132,4337.9,4337.5,0.408]
[1757055683312,0.2122,4337.6,4337.5,0.408]
[1757055683518,3.5006,4337.9,4337.5,0.7721]
[1757055683818,0.4982,4337.6,4337.5,0.7721]
[1757055684117,0.7104,4337.6,4337.5,0.408]
[1757055684320,0.7104,4337.6,4337.5,0.9434]
[1757055684515,0.4176,4337.1,4337.0,0.2105]
[1757055684716,0.7104,4337.1,4337.0,0.9434]
[1757055686008,0.7104,4337.1,4337.0,0.2105]
[1757055686213,0.7104,4337.1,4337.0,0.4485]
[1757055687113,0.4168,4337.0,4336.9,0.238]
[1757055687310,0.4176,4336.4,4336.3,0.5079]
[1757055687511,0.7104,4336.4,4336.3,0.2105]
[1757055687914,0.7104,4336.4,4336.0,0.2974]
[1757055688217,0.4176,4336.0,4335.9,0.4485]
[1757055688421,0.4176,4336.0,4335.9,0.7459]
[1757055688621,0.7104,4336.0,4335.9,0.5079]
[1757055689009,0.2928,4335.9,4335.4,3.5052]
[1757055689214,0.7104,4335.5,4335.4,3.7157]
[1757055689418,0.8344,4335.5,4335.1,31.824]
[1757055689612,0.7104,4335.3,4335.2,0.7459]
[1757055690019,0.7104,4335.3,4335.2,0.9434]
[1757055690418,0.2928,4335.6,4335.3,0.2974]
[1757055690616,0.4982,4335.6,4335.5,0.7054]
[1757055690813,0.2928,4336.0,4335.9,0.408]
[1757055691020,0.2928,4336.6,4336.3,0.2974]
[1757055691220,3.2078,4336.8,4336.2,0.2974]
[1757055691221,0.2054,4336.4,4336.2,0.2974]
[1757055691425,0.7104,4336.4,4336.3,0.7054]
[1757055692029,3.5006,4336.8,4336.7,0.2974]
[1757055692214,0.4982,4336.8,4336.7,0.7054]
[1757055692522,0.2054,4336.8,4336.7,0.7054]
[1757055693123,0.7104,4336.8,4336.7,0.2105]
[1757055693521,0.7104,4336.8,4336.7,0.7054]
[1757055695116,0.2054,4336.8,4336.7,0.7054]
[1757055695628,0.7104,4336.8,4336.7,0.7054]
[1757055698230,0.4176,4336.8,4336.7,0.7054]
[1757055698428,3.323,4337.3,4337.2,0.408]
[1757055698625,3.323,4337.3,4336.5,0.1261]
[1757055698626,0.2054,4336.2,4336.1,0.408]
[1757055698824,0.7104,4336.2,4336.1,0.408]
[1757055699129,0.7104,4336.6,4336.5,0.2105]
[1757055699316,0.7104,4336.6,4336.5,0.408]
[1757055699317,0.6919088,4336.6,4336.5,0.408]
[1757055699516,3.2078,4337.1,4337.0,1.24646]
[1757055700128,3.9182,4337.1,4337.0,0.8315]
[1757055700329,3.9182,4337.1,4337.0,0.7054]
[1757055701024,3.9182,4337.1,4337.0,0.5079]
[1757055701224,0.7104,4336.7,4336.6,0.5079]
[1757055701422,0.7104,4336.7,4336.6,0.7054]
[1757055701623,0.2928,4336.9,4336.6,0.408]
[1757055701922,0.7104,4336.8,4336.7,0.7054]
[1757055702422,0.7104,4336.8,4336.4,0.2974]
[1757055702823,0.4176,4336.8,4336.5,0.2974]
[1757055703023,0.7104,4336.7,4336.6,0.5079]
[1757055703225,0.2928,4336.6,4336.3,0.239]
[1757055703530,0.7104,4336.4,4336.3,0.9444]
[1757055703725,0.4176,4336.4,4336.3,0.9444]
[1757055703926,0.7104,4336.4,4336.3,0.9444]
[1757055704129,0.1152,4337.5,4337.4,0.7054]
[1757055704322,0.4982,4338.0,4337.9,0.408]
[1757055704519,0.7104,4338.0,4337.9,0.7054]
[1757055704720,4.61028625,4338.0,4337.9,0.7054]
[1757055705121,0.2054,4338.0,4337.9,0.7054]
[1757055705728,0.4176,4338.0,4337.9,0.7054]
[1757055706033,0.7104,4338.0,4337.9,0.7054]
[1757055706633,0.408,4338.4,4338.2,0.41484]
[1757055706821,0.3754,4338.9,4338.8,0.408]
[1757055707027,0.3754,4338.9,4338.8,0.7054]
[1757055707630,0.17,4338.9,4338.8,0.7054]
[1757055708130,0.124,4340.0,4339.3,0.3128]
[1757055708131,0.2114,4339.4,4339.3,0.3128]
[1757055708323,0.5156,4339.4,4339.3,0.8467]
[1757055708731,0.3042,4339.7,4339.3,1.06383]
[1757055708930,0.2114,4339.4,4339.3,1.06383]
[1757055709630,3.2078,4339.8,4339.6,0.8248]
[1757055709933,1.6526182,4341.7,4340.2,0.4101]
[1757055709934,3.7234,4340.3,4340.2,0.4101]
[1757055710127,3.7234,4340.3,4340.2,0.6491]
[1757055710332,3.7234,4340.3,4340.2,0.9619]
[1757055710532,3.2078,4340.3,4340.2,0.9619]
[1757055711937,0.4258,4340.7,4340.6,0.198]
[1757055712131,0.73,4340.7,4340.5,0.41462]
[1757055712333,0.73,4340.6,4340.5,0.239]
[1757055712524,0.73,4340.6,4340.5,0.437]
[1757055712727,0.73,4340.6,4340.2,0.41465]
[1757055712931,0.5156,4340.4,4340.3,0.2121]
[1757055713131,0.5156,4340.4,4340.3,0.7229]
[1757055713433,0.2114,4340.4,4340.3,0.7229]
[1757055713634,0.73,4340.7,4340.6,0.7229]
[1757055714032,0.73,4340.7,4340.5,0.239]
[1757055714337,0.4258,4340.7,4340.6,0.198]
[1757055714634,0.4258,4340.7,4340.0,0.1173]
[1757055714939,0.73,4340.1,4340.0,0.7229]
[1757055715139,0.73,4340.1,4340.0,0.437]
[1757055715341,0.73,4340.1,4340.0,0.9619]
[1757055715741,0.73,4340.1,4340.0,0.437]